[Event "Titled Tuesday Blitz June 20 Early 2023"]
[White "Cherniaiev, Tykhon"]
[Black "Berezin, Viktor"]
[WhiteFideId "14182360"]
[BlackFideId "14107872"]
[WhiteElo "2450"]
[BlackElo "2310"]
[Result "1/2-1/2"]
[Round "7"]
[TimeControl "180+2"]
[Date "2023.06.20"]
[WhiteClock "0:00:10"]
[BlackClock "0:00:08"]
[Board "72"]

1. Nf3 {[%clk 0:03:00]}  Nf6 {[%clk 0:02:58]} 2. d4 {[%clk 0:03:01]}  g6 {[%clk 0:02:57]} 3. g3 {[%clk 0:03:01]}  Bg7 {[%clk 0:02:58]} 4. Bg2 {[%clk 0:03:01]}  O-O {[%clk 0:02:57]} 5. O-O {[%clk 0:03:02]}  d6 {[%clk 0:02:58]} 6. c4 {[%clk 0:03:02]}  Nc6 {[%clk 0:02:57]} 7. Nc3 {[%clk 0:03:03]}  a6 {[%clk 0:02:55]} 8. b3 {[%clk 0:03:02]}  Rb8 {[%clk 0:02:53]} 9. a4 {[%clk 0:02:57]}  a5 {[%clk 0:02:46]} 10. Bb2 {[%clk 0:02:56]}  Bg4 {[%clk 0:02:40]} 11. h3 {[%clk 0:02:51]}  Bxf3 {[%clk 0:02:37]} 12. Bxf3 {[%clk 0:02:51]}  e5 {[%clk 0:02:35]} 13. dxe5 {[%clk 0:02:25]}  Nxe5 {[%clk 0:02:28]} 14. Bg2 {[%clk 0:02:24]}  Nc6 {[%clk 0:02:25]} 15. Qd2 {[%clk 0:02:18]}  Nd7 {[%clk 0:02:22]} 16. Nd5 {[%clk 0:02:16]}  Nc5 {[%clk 0:02:13]} 17. Bxg7 {[%clk 0:02:15]}  Kxg7 {[%clk 0:02:14]} 18. Qc3+ {[%clk 0:02:14]}  f6 {[%clk 0:02:13]} 19. Rad1 {[%clk 0:02:12]}  Ne7 {[%clk 0:02:04]} 20. Nf4 {[%clk 0:02:08]}  Nc6 {[%clk 0:01:55]} 21. Bxc6 {[%clk 0:01:58]}  bxc6 {[%clk 0:01:55]} 22. Qxa5 {[%clk 0:01:58]}  Qe7 {[%clk 0:01:44]} 23. Rb1 {[%clk 0:01:43]}  Nxb3 {[%clk 0:01:36]} 24. Qc3 {[%clk 0:01:39]}  Nc5 {[%clk 0:01:31]} 25. a5 {[%clk 0:01:38]}  Qe4 {[%clk 0:01:19]} 26. Nd3 {[%clk 0:00:51]}  Na6 {[%clk 0:00:51]} 27. h4 {[%clk 0:00:35]}  Rfe8 {[%clk 0:00:41]} 28. e3 {[%clk 0:00:31]}  h6 {[%clk 0:00:33]} 29. Rbd1 {[%clk 0:00:23]}  g5 {[%clk 0:00:31]} 30. h5 {[%clk 0:00:12]}  Qf3 {[%clk 0:00:30]} 31. Qd4 {[%clk 0:00:07]}  Qxh5 {[%clk 0:00:23]} 32. Qa7 {[%clk 0:00:07]}  Ra8 {[%clk 0:00:23]} 33. Qb7 {[%clk 0:00:07]}  Qf3 {[%clk 0:00:14]} 34. Qb2 {[%clk 0:00:05]}  h5 {[%clk 0:00:12]} 35. Ne1 {[%clk 0:00:04]}  Qe4 {[%clk 0:00:12]} 36. Rd4 {[%clk 0:00:05]}  Qe6 {[%clk 0:00:12]} 37. Nf3 {[%clk 0:00:04]}  Rab8 {[%clk 0:00:12]} 38. Qc3 {[%clk 0:00:04]}  Nc5 {[%clk 0:00:12]} 39. a6 {[%clk 0:00:03]}  Nxa6 {[%clk 0:00:12]} 40. Qa5 {[%clk 0:00:04]}  Rb6 {[%clk 0:00:11]} 41. Qc3 {[%clk 0:00:03]}  Nc5 {[%clk 0:00:11]} 42. Rdd1 {[%clk 0:00:03]}  Ne4 {[%clk 0:00:12]} 43. Qd4 {[%clk 0:00:03]}  Qg4 {[%clk 0:00:11]} 44. Nh2 {[%clk 0:00:03]}  Qf5 {[%clk 0:00:11]} 45. c5 {[%clk 0:00:02]}  Nxc5 {[%clk 0:00:10]} 46. g4 {[%clk 0:00:01]}  hxg4 {[%clk 0:00:10]} 47. Qd2 {[%clk 0:00:01]}  Ne4 {[%clk 0:00:09]} 48. Qe2 {[%clk 0:00:02]}  g3 {[%clk 0:00:09]} 49. fxg3 {[%clk 0:00:02]}  Qh3 {[%clk 0:00:10]} 50. Qf3 {[%clk 0:00:02]}  Qxg3+ {[%clk 0:00:09]} 51. Qxg3 {[%clk 0:00:02]}  Nxg3 {[%clk 0:00:10]} 52. Rf3 {[%clk 0:00:03]}  Ne4 {[%clk 0:00:10]} 53. Rdf1 {[%clk 0:00:04]}  Rb2 {[%clk 0:00:10]} 54. Ng4 {[%clk 0:00:04]}  Re6 {[%clk 0:00:11]} 55. Rh3 {[%clk 0:00:04]}  Kg6 {[%clk 0:00:10]} 56. Rh6+ {[%clk 0:00:04]}  Kg7 {[%clk 0:00:10]} 57. Rh3 {[%clk 0:00:05]}  Re2 {[%clk 0:00:09]} 58. Ra1 {[%clk 0:00:05]}  c5 {[%clk 0:00:09]} 59. Ra7 {[%clk 0:00:05]}  Re7 {[%clk 0:00:08]} 60. Nh6 {[%clk 0:00:06]}  Kg6 {[%clk 0:00:08]} 61. Ng8 {[%clk 0:00:06]}  Rg7 {[%clk 0:00:08]} 62. Rh6+ {[%clk 0:00:07]}  Kf5 {[%clk 0:00:07]} 63. Rh8 {[%clk 0:00:05]}  Kg4 {[%clk 0:00:07]} 64. Nh6+ {[%clk 0:00:05]}  Kg3 {[%clk 0:00:07]} 65. Ra1 {[%clk 0:00:05]}  Kf3 {[%clk 0:00:05]} 66. Rf1+ {[%clk 0:00:04]}  Rf2 {[%clk 0:00:03]} 67. Rxf2+ {[%clk 0:00:04]}  Nxf2 {[%clk 0:00:04]} 68. Nf5 {[%clk 0:00:05]}  Rf7 {[%clk 0:00:03]} 69. Rh2 {[%clk 0:00:05]}  Ng4 {[%clk 0:00:03]} 70. Rh3+ {[%clk 0:00:05]}  Ke4 {[%clk 0:00:03]} 71. Ng3+ {[%clk 0:00:06]}  Ke5 {[%clk 0:00:03]} 72. Kf1 {[%clk 0:00:05]}  Nxe3+ {[%clk 0:00:03]} 73. Ke2 {[%clk 0:00:06]}  Nf5 {[%clk 0:00:04]} 74. Nh5 {[%clk 0:00:06]}  Rh7 {[%clk 0:00:04]} 75. Kf3 {[%clk 0:00:06]}  Ng7 {[%clk 0:00:04]} 76. Rh1 {[%clk 0:00:06]}  Rxh5 {[%clk 0:00:04]} 77. Re1+ {[%clk 0:00:07]}  Kf5 {[%clk 0:00:05]} 78. Re7 {[%clk 0:00:08]}  Kg6 {[%clk 0:00:05]} 79. Rxc7 {[%clk 0:00:07]}  Rh3+ {[%clk 0:00:06]} 80. Kg2 {[%clk 0:00:08]}  Rh4 {[%clk 0:00:07]} 81. Rd7 {[%clk 0:00:08]}  Rd4 {[%clk 0:00:07]} 82. Rc7 {[%clk 0:00:08]}  Nf5 {[%clk 0:00:08]} 83. Kf3 {[%clk 0:00:09]}  c4 {[%clk 0:00:08]} 84. Rc8 {[%clk 0:00:09]}  d5 {[%clk 0:00:09]} 85. Rg8+ {[%clk 0:00:08]}  Kf7 {[%clk 0:00:10]} 86. Rc8 {[%clk 0:00:09]}  Rd3+ {[%clk 0:00:10]} 87. Ke2 {[%clk 0:00:09]}  Rd4 {[%clk 0:00:09]} 88. Kf3 {[%clk 0:00:09]}  Kg6 {[%clk 0:00:08]} 89. Rg8+ {[%clk 0:00:09]}  Kh5 {[%clk 0:00:08]} 90. Rh8+ {[%clk 0:00:09]}  Kg6 {[%clk 0:00:08]} 91. Rg8+ {[%clk 0:00:10]} 1/2-1/2


[Site "https://www.chess.com"]

[Event "Titled Tuesday Blitz June 20 Early 2023"]
[White "Gavrilov, Maxim"]
[Black "Srihari L R"]
[WhiteFideId "24271454"]
[BlackFideId "46617116"]
[WhiteElo "1969"]
[BlackElo "2334"]
[Result "0-1"]
[Round "7"]
[TimeControl "180+2"]
[Date "2023.06.20"]
[WhiteClock "0:00:00"]
[BlackClock "0:00:53"]
[Board "73"]

1. d4 {[%clk 0:02:57]}  g6 {[%clk 0:02:44]} 2. c4 {[%clk 0:02:56]}  Bg7 {[%clk 0:02:40]} 3. Nf3 {[%clk 0:02:57]}  d6 {[%clk 0:02:30]} 4. g3 {[%clk 0:02:56]}  f5 {[%clk 0:02:28]} 5. Bg2 {[%clk 0:02:55]}  Nf6 {[%clk 0:02:29]} 6. O-O {[%clk 0:02:55]}  O-O {[%clk 0:02:30]} 7. Nc3 {[%clk 0:02:55]}  c6 {[%clk 0:02:27]} 8. d5 {[%clk 0:02:49]}  e5 {[%clk 0:02:17]} 9. dxe6 {[%clk 0:02:24]}  Bxe6 {[%clk 0:02:17]} 10. b3 {[%clk 0:02:24]}  Na6 {[%clk 0:02:16]} 11. Bb2 {[%clk 0:02:23]}  Qe7 {[%clk 0:02:16]} 12. Qd2 {[%clk 0:02:19]}  Rad8 {[%clk 0:02:13]} 13. Rad1 {[%clk 0:02:18]}  Nc5 {[%clk 0:02:09]} 14. Nd4 {[%clk 0:02:16]}  Bc8 {[%clk 0:02:07]} 15. Rfe1 {[%clk 0:02:13]}  Nce4 {[%clk 0:02:06]} 16. Nxe4 {[%clk 0:02:13]}  Nxe4 {[%clk 0:02:06]} 17. Qc2 {[%clk 0:02:11]}  Rfe8 {[%clk 0:02:05]} 18. Nf3 {[%clk 0:02:00]}  Nf6 {[%clk 0:02:00]} 19. Nd2 {[%clk 0:01:56]}  d5 {[%clk 0:01:57]} 20. cxd5 {[%clk 0:01:55]}  Nxd5 {[%clk 0:01:58]} 21. Bxg7 {[%clk 0:01:49]}  Qxg7 {[%clk 0:01:57]} 22. e4 {[%clk 0:01:41]}  Qc3 {[%clk 0:01:52]} 23. Qb1 {[%clk 0:01:29]}  Nf6 {[%clk 0:01:50]} 24. Nc4 {[%clk 0:01:21]}  Rxd1 {[%clk 0:01:48]} 25. Qxd1 {[%clk 0:01:17]}  fxe4 {[%clk 0:01:47]} 26. Re3 {[%clk 0:00:51]}  Qb4 {[%clk 0:01:46]} 27. f3 {[%clk 0:00:31]}  Qc5 {[%clk 0:01:40]} 28. Qd6 {[%clk 0:00:25]}  Qxd6 {[%clk 0:01:38]} 29. Nxd6 {[%clk 0:00:26]}  Rd8 {[%clk 0:01:36]} 30. Nxe4 {[%clk 0:00:21]}  Nxe4 {[%clk 0:01:36]} 31. Rxe4 {[%clk 0:00:20]}  Kf7 {[%clk 0:01:37]} 32. Kf2 {[%clk 0:00:20]}  Bf5 {[%clk 0:01:36]} 33. Re2 {[%clk 0:00:20]}  Rd1 {[%clk 0:01:35]} 34. g4 {[%clk 0:00:19]}  Bd3 {[%clk 0:01:35]} 35. Rb2 {[%clk 0:00:19]}  Ba6 {[%clk 0:01:33]} 36. f4 {[%clk 0:00:19]}  h6 {[%clk 0:01:30]} 37. h3 {[%clk 0:00:18]}  c5 {[%clk 0:01:28]} 38. Rc2 {[%clk 0:00:17]}  b6 {[%clk 0:01:28]} 39. Rb2 {[%clk 0:00:11]}  Kf6 {[%clk 0:01:19]} 40. Bf3 {[%clk 0:00:10]}  Rd3 {[%clk 0:01:16]} 41. Be2 {[%clk 0:00:09]}  Rxh3 {[%clk 0:01:13]} 42. Kg2 {[%clk 0:00:09]}  Bxe2 {[%clk 0:01:04]} 43. Kxh3 {[%clk 0:00:09]}  Bd3 {[%clk 0:01:04]} 44. Kg3 {[%clk 0:00:09]}  b5 {[%clk 0:01:04]} 45. Kf3 {[%clk 0:00:07]}  h5 {[%clk 0:01:03]} 46. Ke3 {[%clk 0:00:06]}  c4 {[%clk 0:01:03]} 47. bxc4 {[%clk 0:00:07]}  bxc4 {[%clk 0:01:03]} 48. gxh5 {[%clk 0:00:06]}  gxh5 {[%clk 0:01:04]} 49. Rb7 {[%clk 0:00:06]}  h4 {[%clk 0:01:03]} 50. Rxa7 {[%clk 0:00:05]}  h3 {[%clk 0:01:04]} 51. Kf2 {[%clk 0:00:05]}  c3 {[%clk 0:01:01]} 52. Rc7 {[%clk 0:00:05]}  c2 {[%clk 0:01:01]} 53. Kg3 {[%clk 0:00:05]}  Bf5 {[%clk 0:01:01]} 54. Rc6+ {[%clk 0:00:03]}  Ke7 {[%clk 0:01:01]} 55. Rc5 {[%clk 0:00:04]}  Kd6 {[%clk 0:01:01]} 56. Rc3 {[%clk 0:00:03]}  Kd5 {[%clk 0:01:01]} 57. a4 {[%clk 0:00:03]}  Kd4 {[%clk 0:01:01]} 58. Rc7 {[%clk 0:00:03]}  Bd3 {[%clk 0:01:00]} 59. a5 {[%clk 0:00:02]}  Bc4 {[%clk 0:01:00]} 60. Rd7+ {[%clk 0:00:01]}  Kc3 {[%clk 0:01:00]} 61. a6 {[%clk 0:00:01]}  c1=Q {[%clk 0:01:00]} 62. a7 {[%clk 0:00:02]}  Qe3+ {[%clk 0:00:56]} 63. Kg4 {[%clk 0:00:02]}  Be6+ {[%clk 0:00:54]} 64. f5 {[%clk 0:00:02]}  Qe4+ {[%clk 0:00:54]} 65. Kg3 {[%clk 0:00:00]}  Bxd7 {[%clk 0:00:53]} 0-1


[Site "https://www.chess.com"]

[Event "Titled Tuesday Blitz June 20 Early 2023"]
[White "Kuzmin, Roman"]
[Black "Rahman, Masruri"]
[WhiteFideId "44134932"]
[BlackFideId "7101163"]
[WhiteElo "2122"]
[BlackElo "2256"]
[Result "0-1"]
[Round "7"]
[TimeControl "180+2"]
[Date "2023.06.20"]
[WhiteClock "0:01:57"]
[BlackClock "0:02:27"]
[Board "74"]

1. e4 {[%clk 0:03:00]}  e6 {[%clk 0:02:59]} 2. d4 {[%clk 0:03:00]}  d5 {[%clk 0:02:57]} 3. Nc3 {[%clk 0:03:01]}  Bb4 {[%clk 0:02:56]} 4. e5 {[%clk 0:03:01]}  c5 {[%clk 0:02:54]} 5. a3 {[%clk 0:03:01]}  Bxc3+ {[%clk 0:02:54]} 6. bxc3 {[%clk 0:03:02]}  Qc7 {[%clk 0:02:53]} 7. Qg4 {[%clk 0:03:02]}  f5 {[%clk 0:02:53]} 8. Qg3 {[%clk 0:02:58]}  Nc6 {[%clk 0:02:54]} 9. Nf3 {[%clk 0:02:52]}  cxd4 {[%clk 0:02:53]} 10. cxd4 {[%clk 0:02:53]}  Nge7 {[%clk 0:02:50]} 11. h4 {[%clk 0:02:52]}  O-O {[%clk 0:02:49]} 12. Bh6 {[%clk 0:02:44]}  Rf7 {[%clk 0:02:47]} 13. Bd2 {[%clk 0:02:44]}  f4 {[%clk 0:02:45]} 14. Qg4 {[%clk 0:02:41]}  Nxd4 {[%clk 0:02:45]} 15. Nxd4 {[%clk 0:02:06]}  Qxe5+ {[%clk 0:02:44]} 16. Kd1 {[%clk 0:02:06]}  Qxd4 {[%clk 0:02:44]} 17. c3 {[%clk 0:02:07]}  Qa4+ {[%clk 0:02:30]} 18. Ke1 {[%clk 0:02:05]}  e5 {[%clk 0:02:28]} 19. Qh5 {[%clk 0:02:04]}  Bf5 {[%clk 0:02:27]} 20. g4 {[%clk 0:01:57]}  Qe4+ {[%clk 0:02:27]} 0-1


[Site "https://www.chess.com"]

[Event "Titled Tuesday Blitz June 20 Early 2023"]
[White "Fus, Jakub"]
[Black "Garcia, Erick"]
[WhiteFideId "1193023"]
[BlackFideId "2058880"]
[WhiteElo "2335"]
[BlackElo "2202"]
[Result "1-0"]
[Round "7"]
[TimeControl "180+2"]
[Date "2023.06.20"]
[WhiteClock "0:00:40"]
[BlackClock "0:01:39"]
[Board "75"]

1. e4 {[%clk 0:03:00]}  e5 {[%clk 0:02:59]} 2. Nf3 {[%clk 0:02:59]}  Nc6 {[%clk 0:03:00]} 3. Bb5 {[%clk 0:02:58]}  a6 {[%clk 0:02:59]} 4. Ba4 {[%clk 0:02:58]}  Nf6 {[%clk 0:02:59]} 5. O-O {[%clk 0:02:59]}  b5 {[%clk 0:02:58]} 6. Bb3 {[%clk 0:02:59]}  Bc5 {[%clk 0:02:59]} 7. c3 {[%clk 0:02:59]}  d6 {[%clk 0:02:59]} 8. d4 {[%clk 0:02:59]}  Bb6 {[%clk 0:03:00]} 9. Be3 {[%clk 0:02:59]}  O-O {[%clk 0:02:57]} 10. Nbd2 {[%clk 0:02:58]}  Bg4 {[%clk 0:02:56]} 11. h3 {[%clk 0:02:41]}  Bh5 {[%clk 0:02:56]} 12. dxe5 {[%clk 0:02:41]}  Bxe3 {[%clk 0:02:53]} 13. exf6 {[%clk 0:02:41]}  Bxd2 {[%clk 0:02:47]} 14. fxg7 {[%clk 0:02:39]}  Kxg7 {[%clk 0:02:40]} 15. Qxd2 {[%clk 0:02:39]}  Bxf3 {[%clk 0:02:40]} 16. gxf3 {[%clk 0:02:40]}  Ne5 {[%clk 0:02:40]} 17. Qe3 {[%clk 0:02:29]}  Qh4 {[%clk 0:02:38]} 18. f4 {[%clk 0:02:23]}  Ng6 {[%clk 0:02:36]} 19. Qg3 {[%clk 0:02:11]}  Qxf4 {[%clk 0:02:34]} 20. Rae1 {[%clk 0:02:00]}  Rae8 {[%clk 0:02:29]} 21. Qxf4 {[%clk 0:01:56]}  Nxf4 {[%clk 0:02:28]} 22. Kh2 {[%clk 0:01:56]}  Kf6 {[%clk 0:02:28]} 23. Rg1 {[%clk 0:01:52]}  Rg8 {[%clk 0:02:27]} 24. Rg3 {[%clk 0:01:50]}  Rg6 {[%clk 0:02:20]} 25. Rf3 {[%clk 0:01:45]}  Ke5 {[%clk 0:02:19]} 26. Bxf7 {[%clk 0:01:44]}  Rg2+ {[%clk 0:02:18]} 27. Kh1 {[%clk 0:01:44]}  Rf8 {[%clk 0:02:12]} 28. Rxf4 {[%clk 0:01:40]}  Kxf4 {[%clk 0:02:11]} 29. Kxg2 {[%clk 0:01:40]}  Rxf7 {[%clk 0:02:12]} 30. Re3 {[%clk 0:01:34]}  Rg7+ {[%clk 0:02:12]} 31. Kf1 {[%clk 0:01:34]}  Re7 {[%clk 0:02:07]} 32. Kg2 {[%clk 0:01:26]}  Rxe4 {[%clk 0:02:04]} 33. Rf3+ {[%clk 0:01:26]}  Ke5 {[%clk 0:02:02]} 34. Rf7 {[%clk 0:01:27]}  c5 {[%clk 0:01:59]} 35. Rxh7 {[%clk 0:01:25]}  Kd5 {[%clk 0:02:00]} 36. Kf1 {[%clk 0:01:19]}  b4 {[%clk 0:01:58]} 37. cxb4 {[%clk 0:01:17]}  Rxb4 {[%clk 0:01:57]} 38. b3 {[%clk 0:01:17]}  c4 {[%clk 0:01:57]} 39. Rh5+ {[%clk 0:01:15]}  Kc6 {[%clk 0:01:57]} 40. bxc4 {[%clk 0:01:14]}  Rxc4 {[%clk 0:01:55]} 41. Ra5 {[%clk 0:01:10]}  Kb6 {[%clk 0:01:55]} 42. Ra3 {[%clk 0:01:10]}  a5 {[%clk 0:01:54]} 43. Kg2 {[%clk 0:01:06]}  a4 {[%clk 0:01:54]} 44. Kg3 {[%clk 0:01:06]}  Kb5 {[%clk 0:01:54]} 45. h4 {[%clk 0:01:05]}  Kb4 {[%clk 0:01:54]} 46. Rd3 {[%clk 0:01:04]}  a3 {[%clk 0:01:54]} 47. h5 {[%clk 0:01:00]}  Rc2 {[%clk 0:01:53]} 48. h6 {[%clk 0:00:54]}  Rc8 {[%clk 0:01:45]} 49. Kg4 {[%clk 0:00:49]}  Kc4 {[%clk 0:01:44]} 50. Rxd6 {[%clk 0:00:46]}  Kc3 {[%clk 0:01:43]} 51. Re6 {[%clk 0:00:46]}  Kb2 {[%clk 0:01:43]} 52. Re2+ {[%clk 0:00:45]}  Kb1 {[%clk 0:01:39]} 53. f4 {[%clk 0:00:40]} 1-0


[Site "https://www.chess.com"]

[Event "Titled Tuesday Blitz June 20 Early 2023"]
[White "Rodchenkov, Sergey D."]
[Black "Marek, Matyas"]
[WhiteFideId "4168712"]
[BlackFideId "335398"]
[WhiteElo "2277"]
[BlackElo "2302"]
[Result "0-1"]
[Round "7"]
[TimeControl "180+2"]
[Date "2023.06.20"]
[WhiteClock "0:00:01"]
[BlackClock "0:00:27"]
[Board "76"]

1. e4 {[%clk 0:03:00]}  c5 {[%clk 0:02:59]} 2. Nf3 {[%clk 0:03:01]}  d6 {[%clk 0:03:00]} 3. d4 {[%clk 0:03:02]}  cxd4 {[%clk 0:03:01]} 4. Nxd4 {[%clk 0:03:03]}  Nf6 {[%clk 0:03:01]} 5. Nc3 {[%clk 0:03:03]}  Nc6 {[%clk 0:03:02]} 6. Bg5 {[%clk 0:03:02]}  e6 {[%clk 0:03:02]} 7. Qd3 {[%clk 0:03:02]}  Bd7 {[%clk 0:03:01]} 8. O-O-O {[%clk 0:03:02]}  a6 {[%clk 0:03:02]} 9. Nxc6 {[%clk 0:02:55]}  Bxc6 {[%clk 0:03:02]} 10. Qg3 {[%clk 0:02:56]}  Qa5 {[%clk 0:02:43]} 11. Bxf6 {[%clk 0:02:47]}  gxf6 {[%clk 0:02:43]} 12. Kb1 {[%clk 0:02:38]}  Rc8 {[%clk 0:02:43]} 13. Bc4 {[%clk 0:02:30]}  Bd7 {[%clk 0:02:21]} 14. Bb3 {[%clk 0:02:27]}  h5 {[%clk 0:02:21]} 15. Rhe1 {[%clk 0:02:19]}  h4 {[%clk 0:02:17]} 16. Qf3 {[%clk 0:02:15]}  Be7 {[%clk 0:02:04]} 17. Qe3 {[%clk 0:01:54]}  Qc5 {[%clk 0:02:01]} 18. Qe2 {[%clk 0:01:48]}  b5 {[%clk 0:01:57]} 19. f4 {[%clk 0:01:41]}  a5 {[%clk 0:01:39]} 20. a4 {[%clk 0:01:02]}  bxa4 {[%clk 0:01:39]} 21. Bxa4 {[%clk 0:00:53]}  Bxa4 {[%clk 0:01:39]} 22. Nxa4 {[%clk 0:00:53]}  Qb4 {[%clk 0:01:40]} 23. b3 {[%clk 0:00:53]}  Rb8 {[%clk 0:01:27]} 24. Ka2 {[%clk 0:00:49]}  Kd7 {[%clk 0:01:10]} 25. Qd2 {[%clk 0:00:23]}  Rhc8 {[%clk 0:01:06]} 26. Qxb4 {[%clk 0:00:22]}  Rxb4 {[%clk 0:01:07]} 27. c3 {[%clk 0:00:20]}  Rb5 {[%clk 0:01:04]} 28. c4 {[%clk 0:00:20]}  Rb4 {[%clk 0:00:56]} 29. Rd3 {[%clk 0:00:20]}  Kc6 {[%clk 0:00:50]} 30. g3 {[%clk 0:00:19]}  Rg8 {[%clk 0:00:50]} 31. Red1 {[%clk 0:00:12]}  hxg3 {[%clk 0:00:49]} 32. Rxg3 {[%clk 0:00:11]}  Rbb8 {[%clk 0:00:46]} 33. Rdg1 {[%clk 0:00:11]}  Rh8 {[%clk 0:00:46]} 34. R1g2 {[%clk 0:00:09]}  Rh4 {[%clk 0:00:46]} 35. Rg7 {[%clk 0:00:09]}  Rf8 {[%clk 0:00:47]} 36. Rf2 {[%clk 0:00:09]}  f5 {[%clk 0:00:44]} 37. exf5 {[%clk 0:00:06]}  Bf6 {[%clk 0:00:43]} 38. Rgg2 {[%clk 0:00:06]}  exf5 {[%clk 0:00:44]} 39. Nb2 {[%clk 0:00:03]}  Re8 {[%clk 0:00:40]} 40. Nd1 {[%clk 0:00:02]}  Re4 {[%clk 0:00:39]} 41. Kb1 {[%clk 0:00:01]}  Rexf4 {[%clk 0:00:39]} 42. Ne3 {[%clk 0:00:02]}  Rxf2 {[%clk 0:00:37]} 43. Rxf2 {[%clk 0:00:02]}  f4 {[%clk 0:00:38]} 44. Nd5 {[%clk 0:00:03]}  Be5 {[%clk 0:00:38]} 45. Kc2 {[%clk 0:00:03]}  Kc5 {[%clk 0:00:37]} 46. Rf1 {[%clk 0:00:03]}  Rxh2+ {[%clk 0:00:35]} 47. Kd3 {[%clk 0:00:03]}  Rh3+ {[%clk 0:00:35]} 48. Ke4 {[%clk 0:00:04]}  Rxb3 {[%clk 0:00:34]} 49. Ra1 {[%clk 0:00:01]}  Bxa1 {[%clk 0:00:27]} 0-1


[Site "https://www.chess.com"]

[Event "Titled Tuesday Blitz June 20 Early 2023"]
[White "Timerkhanov, Alexander"]
[Black "Camilla_Lee"]
[WhiteFideId "24177938"]
[WhiteElo "2278"]
[BlackElo "2523"]
[Result "1-0"]
[Round "7"]
[TimeControl "180+2"]
[Date "2023.06.20"]
[WhiteClock "0:00:57"]
[BlackClock "0:01:19"]
[Board "78"]

1. d4 {[%clk 0:02:34]}  Nf6 {[%clk 0:02:57]} 2. Bg5 {[%clk 0:02:33]}  g6 {[%clk 0:02:55]} 3. Bxf6 {[%clk 0:02:33]}  exf6 {[%clk 0:02:56]} 4. e3 {[%clk 0:02:33]}  f5 {[%clk 0:02:53]} 5. g3 {[%clk 0:02:32]}  d5 {[%clk 0:02:45]} 6. Bg2 {[%clk 0:02:33]}  c6 {[%clk 0:02:45]} 7. Ne2 {[%clk 0:02:32]}  Bg7 {[%clk 0:02:41]} 8. Nd2 {[%clk 0:02:32]}  O-O {[%clk 0:02:41]} 9. O-O {[%clk 0:02:31]}  Be6 {[%clk 0:02:39]} 10. Rc1 {[%clk 0:02:28]}  b5 {[%clk 0:02:32]} 11. b3 {[%clk 0:02:27]}  b4 {[%clk 0:02:31]} 12. c4 {[%clk 0:02:26]}  bxc3 {[%clk 0:02:30]} 13. Rxc3 {[%clk 0:02:23]}  Qb6 {[%clk 0:02:25]} 14. Qc1 {[%clk 0:02:19]}  Rc8 {[%clk 0:02:25]} 15. Nf4 {[%clk 0:02:18]}  Na6 {[%clk 0:02:19]} 16. a3 {[%clk 0:02:09]}  Rc7 {[%clk 0:01:54]} 17. b4 {[%clk 0:02:06]}  Rac8 {[%clk 0:01:50]} 18. Nb3 {[%clk 0:02:05]}  Bf8 {[%clk 0:01:45]} 19. Na5 {[%clk 0:01:53]}  Nb8 {[%clk 0:01:44]} 20. Qc2 {[%clk 0:01:32]}  Bd6 {[%clk 0:01:38]} 21. Rc1 {[%clk 0:01:27]}  Bd7 {[%clk 0:01:38]} 22. h4 {[%clk 0:01:12]}  Bxf4 {[%clk 0:01:37]} 23. gxf4 {[%clk 0:01:11]}  h5 {[%clk 0:01:36]} 24. Bxd5 {[%clk 0:01:07]}  Qb5 {[%clk 0:01:25]} 25. Bg2 {[%clk 0:01:05]}  Be8 {[%clk 0:01:25]} 26. Rc5 {[%clk 0:01:05]}  Qb6 {[%clk 0:01:25]} 27. d5 {[%clk 0:01:02]}  Rd7 {[%clk 0:01:23]} 28. dxc6 {[%clk 0:01:01]}  Rd6 {[%clk 0:01:19]} 29. Nc4 {[%clk 0:00:57]} 1-0


[Site "https://www.chess.com"]

[Event "Titled Tuesday Blitz June 20 Early 2023"]
[White "Seemann, Jakub"]
[Black "Baches Garcia, Guillermo"]
[WhiteFideId "21874697"]
[BlackFideId "2209764"]
[WhiteElo "2364"]
[BlackElo "2496"]
[Result "1-0"]
[Round "7"]
[TimeControl "180+2"]
[Date "2023.06.20"]
[WhiteClock "0:01:26"]
[BlackClock "0:00:00"]
[Board "80"]

1. b3 {[%clk 0:03:00]}  d5 {[%clk 0:02:54]} 2. Bb2 {[%clk 0:02:59]}  Bf5 {[%clk 0:02:54]} 3. Nf3 {[%clk 0:02:58]}  e6 {[%clk 0:02:54]} 4. e3 {[%clk 0:02:59]}  h6 {[%clk 0:02:53]} 5. c4 {[%clk 0:02:59]}  Nf6 {[%clk 0:02:52]} 6. Be2 {[%clk 0:03:00]}  c6 {[%clk 0:02:48]} 7. O-O {[%clk 0:03:00]}  Bd6 {[%clk 0:02:46]} 8. d3 {[%clk 0:03:00]}  O-O {[%clk 0:02:45]} 9. Nbd2 {[%clk 0:03:00]}  Bh7 {[%clk 0:02:45]} 10. cxd5 {[%clk 0:02:59]}  exd5 {[%clk 0:02:44]} 11. Ne5 {[%clk 0:02:58]}  Nbd7 {[%clk 0:02:41]} 12. Ndf3 {[%clk 0:02:56]}  Re8 {[%clk 0:02:41]} 13. Nxd7 {[%clk 0:02:55]}  Nxd7 {[%clk 0:02:40]} 14. Rc1 {[%clk 0:02:55]}  Ne5 {[%clk 0:02:38]} 15. Nxe5 {[%clk 0:02:54]}  Bxe5 {[%clk 0:02:37]} 16. Qd2 {[%clk 0:02:54]}  Qd6 {[%clk 0:02:26]} 17. Bxe5 {[%clk 0:02:52]}  Rxe5 {[%clk 0:02:25]} 18. b4 {[%clk 0:02:51]}  a6 {[%clk 0:02:22]} 19. a4 {[%clk 0:02:49]}  Rae8 {[%clk 0:02:08]} 20. Qb2 {[%clk 0:02:47]}  Rg5 {[%clk 0:01:48]} 21. Qd4 {[%clk 0:02:46]}  Bf5 {[%clk 0:01:35]} 22. Rfe1 {[%clk 0:02:41]}  Bh3 {[%clk 0:01:32]} 23. g3 {[%clk 0:02:40]}  Rge5 {[%clk 0:01:23]} 24. Rc5 {[%clk 0:02:31]}  h5 {[%clk 0:01:17]} 25. b5 {[%clk 0:02:30]}  axb5 {[%clk 0:01:17]} 26. axb5 {[%clk 0:02:31]}  Bd7 {[%clk 0:01:15]} 27. bxc6 {[%clk 0:02:30]}  bxc6 {[%clk 0:01:15]} 28. Ra5 {[%clk 0:02:25]}  Qf6 {[%clk 0:01:10]} 29. Rb1 {[%clk 0:02:13]}  h4 {[%clk 0:01:03]} 30. Qxh4 {[%clk 0:02:10]}  Qxh4 {[%clk 0:01:00]} 31. gxh4 {[%clk 0:02:11]}  Bh3 {[%clk 0:00:56]} 32. Bf1 {[%clk 0:02:04]}  Bxf1 {[%clk 0:00:50]} 33. Kxf1 {[%clk 0:02:05]}  R8e6 {[%clk 0:00:50]} 34. Rb4 {[%clk 0:02:04]}  g6 {[%clk 0:00:48]} 35. Rc5 {[%clk 0:02:02]}  Rf5 {[%clk 0:00:48]} 36. Ke2 {[%clk 0:02:01]}  Kg7 {[%clk 0:00:44]} 37. Rg4 {[%clk 0:01:51]}  Kh6 {[%clk 0:00:43]} 38. f4 {[%clk 0:01:45]}  d4 {[%clk 0:00:34]} 39. Re5 {[%clk 0:01:31]}  Rexe5 {[%clk 0:00:18]} 40. fxe5 {[%clk 0:01:32]}  dxe3 {[%clk 0:00:18]} 41. d4 {[%clk 0:01:32]}  c5 {[%clk 0:00:18]} 42. dxc5 {[%clk 0:01:26]}  Rxe5 {[%clk 0:00:17]} 43. Rc4 {[%clk 0:01:26]}  Re7 {[%clk 0:00:14]} 44. c6 {[%clk 0:01:26]}  Rc7 {[%clk 0:00:14]} 45. Kxe3 {[%clk 0:01:27]}  Kh5 {[%clk 0:00:14]} 46. Kf3 {[%clk 0:01:25]}  f5 {[%clk 0:00:14]} 47. Kg3 {[%clk 0:01:25]}  Kh6 {[%clk 0:00:12]} 48. Kf4 {[%clk 0:01:25]}  Kh5 {[%clk 0:00:00]} 49. Ke5 {[%clk 0:01:26]} 1-0


[Site "https://www.chess.com"]